bitfinex/quotes_SOLUSD_20240713
["timestamp","ask_amount","ask_price","bid_price","bid_amount"]
[1720902961785,16.4445,140.31,140.22,45.0]
[1720902961998,16.4445,140.31,140.23,20.0]
[1720902962202,11.97,140.3,140.21,15.5386]
[1720902962517,16.4445,140.31,140.18,15.5386]
[1720902962518,11.97,140.27,140.18,15.5386]
[1720902962707,16.4445,140.31,140.22,11.97]
[1720902963006,11.97,140.27,140.22,11.97]
[1720902963184,11.97,140.26,140.15,28.7051231]
[1720902963385,11.97,140.26,140.21,11.97]
[1720902963601,6.5153,140.27,140.15,28.7051231]
[1720902963602,6.5153,140.27,140.22,11.97]
[1720902963811,6.5153,140.27,140.23,11.97]
[1720902964313,11.97,140.26,140.22,11.97]
[1720902964619,11.97,140.26,140.21,11.97]
[1720902965092,18.4853,140.27,140.22,11.97]
[1720902965299,18.4853,140.27,140.23,11.97]
[1720902965610,6.5153,140.27,140.23,11.97]
[1720902966110,18.4853,140.27,140.23,11.97]
[1720902967316,6.5153,140.27,140.23,11.97]
[1720902969522,18.4853,140.27,140.22,11.97]
[1720902970715,18.4853,140.27,140.15,28.7051231]
[1720902970917,11.97,140.26,140.21,11.97]
[1720902971799,16.0976,140.25,140.16,65.0]
[1720902972011,16.0976,140.25,140.21,11.97]
[1720902972717,16.0976,140.25,140.15,28.7051231]
[1720902973016,16.0976,140.25,140.2,11.97]
[1720902973017,28.0676,140.25,140.2,11.97]
[1720902973389,16.0976,140.25,140.21,11.97]
[1720902973809,16.0976,140.25,140.22,11.97]
[1720902977015,16.0976,140.25,140.21,11.97]
[1720902978221,16.0976,140.25,140.22,11.97]
[1720902979124,16.0976,140.25,140.21,11.97]
[1720902979826,16.0976,140.25,140.15,21.6085]
[1720902980022,16.0976,140.25,140.16,65.0]
[1720902980227,16.0976,140.25,140.21,11.97]
[1720902981315,16.0976,140.25,140.16,65.0]
[1720902981514,16.0976,140.25,140.21,11.97]
[1720902988506,16.0976,140.25,140.16,65.0]
[1720902988719,16.0976,140.25,140.21,11.97]
[1720902991409,16.0976,140.25,140.22,11.97]
[1720902999617,18.4853,140.27,140.16,65.0]
[1720902999618,6.5153,140.27,140.16,65.0]
[1720902999923,15.4227,140.29,140.25,11.97]
[1720903000815,27.3927,140.29,140.16,94.95428234]
[1720903001030,11.97,140.28,140.16,94.95428234]
[1720903001339,11.97,140.28,140.23,11.97]
[1720903001808,15.4227,140.29,140.23,11.97]
[1720903002010,27.3927,140.29,140.24,11.97]
[1720903011025,11.97,140.28,140.23,11.97]
[1720903011208,11.97,140.27,140.16,37.98428234]
[1720903011413,11.97,140.26,140.21,11.97]
[1720903012639,11.97,140.27,140.22,11.97]
[1720903012814,15.4227,140.29,140.21,11.97]
[1720903012815,11.97,140.26,140.21,11.97]
[1720903013435,11.97,140.25,140.2,11.97]
[1720903013632,11.97,140.25,140.21,20.0]
[1720903014144,11.97,140.26,140.21,31.97]
[1720903015650,11.97,140.25,140.2,11.97]
[1720903021425,45.0,140.28,140.15,275.0386]
[1720903021426,56.97,140.28,140.15,275.0386]
[1720903021623,11.97,140.23,140.18,11.97]
[1720903021826,11.97,140.23,140.15,15.5386]
[1720903022128,11.97,140.22,140.17,11.97]
[1720903022948,28.3642,140.22,140.17,11.97]
[1720903023139,11.97,140.21,140.16,11.97]
[1720903023347,11.97,140.21,140.17,20.0]
[1720903025340,28.3642,140.22,140.17,31.97]
[1720903025537,16.3942,140.22,140.18,11.97]
[1720903026330,28.3642,140.22,140.18,11.97]
[1720903026650,28.3642,140.22,140.17,31.97]
[1720903027361,11.97,140.21,140.17,20.0]
[1720903027643,16.3942,140.22,140.17,20.0]
[1720903027821,28.3642,140.22,140.17,31.97]
[1720903028021,16.3942,140.22,140.17,31.97]
[1720903028229,28.3642,140.22,140.17,31.97]
[1720903030123,11.97,140.21,140.17,20.0]
[1720903030731,11.97,140.21,140.12,14.43607794]
[1720903030935,11.97,140.2,140.15,11.97]
[1720903034451,11.97,140.18,140.11,15.0974]
[1720903034654,16.3942,140.22,140.13,11.97]
[1720903034893,11.97,140.18,140.13,11.97]
[1720903035164,11.97,140.19,140.14,11.97]
[1720903036056,16.3942,140.22,140.16,11.97]
[1720903036238,28.3642,140.22,140.17,11.97]
[1720903036439,28.3642,140.22,140.16,11.97]
[1720903036644,11.97,140.21,140.16,11.97]
[1720903037040,16.3942,140.22,140.16,11.97]
[1720903037251,11.97,140.21,140.16,11.97]
[1720903038776,16.3942,140.22,140.16,11.97]
[1720903038951,11.97,140.21,140.16,11.97]
[1720903041754,11.97,140.2,140.15,11.97]
[1720903042391,11.97,140.19,140.14,11.97]
[1720903044150,11.97,140.16,140.09,8.02017794]
[1720903044352,11.97,140.15,140.1,11.97]
[1720903044782,11.97,140.16,140.11,11.97]
[1720903045157,11.97,140.15,140.1,11.97]
[1720903045348,11.97,140.14,140.07,16.66]
[1720903045679,11.97,140.14,140.09,11.97]
[1720903045876,11.97,140.14,140.1,20.0]
[1720903047472,11.97,140.15,140.1,31.97]
[1720903050076,11.97,140.14,140.1,20.0]
[1720903050276,11.97,140.13,140.08,11.97]
[1720903051182,16.4728,140.18,140.09,11.97]
[1720903051387,11.97,140.14,140.1,11.97]
[1720903051689,11.97,140.14,140.09,11.97]
[1720903052484,16.4728,140.18,140.09,11.97]
[1720903052688,11.97,140.15,140.1,11.97]
[1720903052989,11.97,140.16,140.11,11.97]
[1720903053186,11.97,140.15,140.1,11.97]
[1720903054583,11.97,140.14,140.09,11.97]
[1720903055159,11.97,140.15,140.1,11.97]
[1720903060802,11.97,140.15,140.04,14.65564403]
[1720903061000,11.97,140.15,140.1,11.97]
[1720903063621,16.4728,140.18,140.08,15.0824]
[1720903063904,16.4728,140.18,140.12,11.97]
[1720903064080,16.4728,140.18,140.13,11.97]
[1720903064277,28.4428,140.18,140.13,11.97]
[1720903065484,16.4728,140.18,140.13,11.97]
[1720903065691,28.4428,140.18,140.13,11.97]
[1720903068516,11.97,140.17,140.12,11.97]
[1720903069724,16.4728,140.18,140.12,11.97]
[1720903069891,28.4428,140.18,140.13,11.97]
[1720903070307,28.4428,140.18,140.09,26.1371]
[1720903070308,21.8148,140.23,140.15,11.97]
[1720903070610,11.97,140.21,140.16,11.97]
[1720903071395,11.97,140.2,140.15,11.97]
[1720903073105,11.97,140.19,140.14,11.97]
[1720903079829,11.97,140.2,140.15,11.97]
[1720903080042,21.8148,140.23,140.16,11.97]
[1720903080043,11.97,140.21,140.16,11.97]
[1720903080443,21.8148,140.23,140.16,11.97]
[1720903080741,11.97,140.21,140.16,11.97]
[1720903081809,11.97,140.22,140.17,11.97]
[1720903082414,11.97,140.21,140.16,11.97]
[1720903090035,21.8148,140.23,140.14,11.97]
[1720903090036,33.7848,140.23,140.14,11.97]
[1720903090345,15.2279,140.26,140.22,11.97]
[1720903090523,11.97,140.28,140.23,11.97]
[1720903091028,11.97,140.27,140.18,22.5557]
[1720903091210,11.97,140.26,140.22,11.97]
[1720903091822,11.97,140.25,140.18,22.5557]
[1720903092032,11.97,140.25,140.2,11.97]
[1720903093535,11.97,140.25,140.19,20.0]
[1720903093740,11.97,140.24,140.19,20.0]
[1720903093914,11.97,140.24,140.2,11.97]
[1720903094115,15.2279,140.29,140.2,11.97]
[1720903094344,11.97,140.25,140.2,11.97]
[1720903094649,15.2279,140.29,140.23,11.97]
[1720903094839,11.97,140.28,140.23,11.97]
[1720903096142,6.97,140.28,140.23,11.97]
[1720903096346,15.2279,140.29,140.25,11.97]
[1720903096533,15.2279,140.29,140.21,15.4407]
[1720903096731,11.97,140.28,140.23,11.97]
[1720903098750,11.47,140.28,140.23,11.97]
[1720903099247,11.47,140.28,140.19,6.2765]
[1720903099457,11.47,140.28,140.23,11.97]
[1720903101253,11.97,140.27,140.2,20.0]
[1720903101443,11.97,140.26,140.21,11.97]
[1720903101761,11.97,140.26,140.22,20.0]
[1720903101947,11.97,140.27,140.22,31.97]
[1720903109759,11.97,140.24,140.18,15.4407]
[1720903109945,11.97,140.24,140.16,6.2765]
[1720903110259,11.97,140.23,140.18,11.97]
[1720903110554,11.97,140.23,140.16,6.2765]
[1720903110858,11.97,140.22,140.15,15.4407]
[1720903111036,11.97,140.22,140.17,11.97]
[1720903111231,11.97,140.23,140.18,11.97]
[1720903111435,27.5873,140.24,140.19,11.97]
[1720903116258,27.5873,140.24,140.15,15.4407]
[1720903116558,11.97,140.23,140.18,11.97]
[1720903118168,11.97,140.22,140.17,11.97]
[1720903121558,15.6173,140.24,140.18,11.97]
[1720903121744,11.97,140.23,140.18,11.97]
[1720903125762,15.6173,140.24,140.18,11.97]
[1720903126068,11.97,140.23,140.18,11.97]
[1720903126464,15.6173,140.24,140.18,11.97]
[1720903126644,27.5873,140.24,140.19,11.97]
[1720903127155,11.97,140.23,140.18,11.97]
[1720903130367,27.5873,140.24,140.19,11.97]
[1720903134850,15.3203,140.28,140.21,11.97]
[1720903135050,11.97,140.27,140.22,11.97]
[1720903135577,27.2903,140.28,140.23,11.97]
[1720903137164,11.97,140.27,140.22,11.97]
[1720903142477,11.97,140.27,140.18,6.3563]
[1720903142690,11.97,140.27,140.22,11.97]
[1720903145021,11.97,140.26,140.18,6.3563]
[1720903145177,11.97,140.26,140.16,20.0]
[1720903145178,27.2903,140.28,140.19,31.97]
[1720903145366,11.97,140.24,140.19,11.97]
[1720903145567,11.97,140.24,140.2,20.0]
[1720903146277,11.97,140.25,140.2,31.97]
[1720903147281,11.97,140.24,140.2,20.0]
[1720903147462,11.97,140.24,140.18,11.97]
[1720903147657,11.97,140.24,140.19,11.97]
[1720903147857,15.3203,140.23,140.18,11.97]
[1720903148073,27.2903,140.23,140.18,11.97]
[1720903149359,11.97,140.21,140.11,291.89812197]
[1720903149558,11.97,140.21,140.16,11.97]
[1720903150386,11.97,140.22,140.17,11.97]
[1720903152615,15.3203,140.23,140.17,11.97]
[1720903152901,27.2903,140.23,140.18,11.97]
[1720903154787,15.5301,140.27,140.16,16.2497]
[1720903155100,11.97,140.26,140.2,11.97]
[1720903155299,11.97,140.26,140.21,11.97]
[1720903155800,11.97,140.26,140.2,11.97]
[1720903156584,11.97,140.25,140.2,11.97]
[1720903156791,11.97,140.26,140.2,11.97]
[1720903156987,11.97,140.25,140.2,11.97]
[1720903157494,15.5301,140.27,140.2,11.97]
[1720903157799,11.97,140.25,140.2,11.97]
[1720903158483,11.97,140.26,140.2,11.97]
[1720903159305,11.97,140.26,140.21,11.97]
[1720903162900,27.5001,140.27,140.22,11.97]
[1720903164107,27.5001,140.27,140.17,65.0]
[1720903164313,11.97,140.25,140.17,65.0]
[1720903164625,11.97,140.24,140.19,11.97]
[1720903165308,11.97,140.25,140.2,11.97]
[1720903165802,11.97,140.25,140.17,20.0]
[1720903166012,11.97,140.25,140.2,11.97]
[1720903168801,11.97,140.26,140.2,11.97]
[1720903169121,11.97,140.25,140.2,11.97]
[1720903172429,11.97,140.26,140.21,11.97]
[1720903173536,11.97,140.26,140.17,20.0]
[1720903173841,11.97,140.25,140.2,11.97]
[1720903183007,15.5301,140.27,140.2,11.97]
[1720903183211,56.97,140.26,140.2,11.97]
[1720903186530,11.97,140.25,140.2,11.97]
[1720903188733,15.5301,140.27,140.17,20.0]
[1720903188936,27.5001,140.27,140.21,11.97]
[1720903189241,27.5001,140.27,140.22,11.97]
[1720903189821,11.97,140.26,140.21,11.97]
[1720903190244,11.97,140.26,140.2,11.97]
[1720903191135,11.97,140.25,140.2,11.97]
[1720903191445,11.97,140.25,140.17,20.0]
[1720903191738,11.97,140.22,140.16,16.2497]
[1720903191939,11.97,140.22,140.17,13.39665717]
[1720903192117,11.97,140.23,140.18,11.97]
[1720903192525,15.5301,140.27,140.18,11.97]
[1720903192722,11.97,140.23,140.18,11.97]
[1720903194460,45.0,140.26,140.18,11.97]
[1720903194741,45.0,140.26,140.17,1.42648406]
[1720903194922,45.0,140.26,140.19,11.97]
[1720903195117,11.97,140.24,140.19,11.97]
[1720903195932,11.97,140.23,140.17,20.0]
[1720903196241,11.97,140.22,140.17,31.97]
[1720903197739,11.97,140.23,140.18,11.97]
[1720903198127,11.97,140.24,140.18,11.97]
[1720903200246,11.97,140.23,140.18,11.97]
[1720903200447,11.97,140.23,140.17,20.0]
[1720903200655,11.97,140.23,140.17,31.97]
[1720903203845,11.97,140.23,140.18,11.97]
[1720903204150,11.97,140.24,140.19,11.97]
[1720903204531,15.5301,140.27,140.2,11.97]
[1720903204733,15.5301,140.27,140.21,11.97]
[1720903204734,11.97,140.26,140.21,11.97]
[1720903207439,15.7661,140.31,140.23,11.97]
[1720903207634,11.97,140.28,140.23,11.97]
[1720903210250,45.0,140.3,140.23,11.97]
[1720903210563,11.97,140.29,140.24,11.97]
[1720903210731,11.97,140.29,140.22,20.0]
[1720903210732,11.97,140.28,140.23,11.97]
[1720903212841,11.97,140.29,140.24,11.97]
[1720903213258,6.372,140.32,140.26,11.97]
[1720903213452,11.97,140.31,140.26,11.97]
[1720903214250,23.99495445,140.34,140.26,11.97]
[1720903214450,11.97,140.31,140.26,11.97]
[1720903216662,11.97,140.31,140.27,11.97]
[1720903217839,11.97,140.31,140.26,11.97]
[1720903222046,23.99495445,140.34,140.27,13.39556639]
[1720903222242,11.97,140.33,140.28,11.97]
[1720903222860,11.97,140.33,140.27,11.97]
[1720903223372,11.97,140.32,140.27,11.97]
[1720903225948,11.97,140.3,140.25,15.0315]
[1720903226267,11.97,140.3,140.26,11.97]
[1720903227474,11.97,140.31,140.26,11.97]
[1720903227675,11.97,140.31,140.25,15.0315]
[1720903227676,23.99495445,140.34,140.27,11.97]
[1720903227854,11.97,140.32,140.27,11.97]
[1720903229472,11.97,140.32,140.25,15.0315]
[1720903229473,45.0,140.33,140.26,11.97]
[1720903229680,11.97,140.31,140.26,11.97]
[1720903230476,45.0,140.33,140.27,11.97]
[1720903230672,11.97,140.32,140.27,11.97]
[1720903231464,45.0,140.33,140.26,11.97]
[1720903231670,11.97,140.31,140.25,15.0315]
[1720903231852,11.97,140.31,140.26,11.97]
[1720903233660,45.0,140.33,140.26,11.97]
[1720903233982,23.99495445,140.34,140.22,36.1237]
[1720903234160,45.0,140.33,140.26,11.97]
[1720903238463,11.97,140.32,140.27,11.97]
[1720903240081,23.99495445,140.34,140.27,11.97]
[1720903240273,11.97,140.32,140.27,11.97]
[1720903244301,11.97,140.32,140.26,11.97]
[1720903251885,23.99495445,140.34,140.29,11.97]
[1720903251886,7.46735445,140.34,140.29,11.97]
[1720903252088,7.46735445,140.34,140.26,22.3566]
[1720903252089,7.46735445,140.34,140.3,13.39539078]
[1720903252293,11.97,140.36,140.31,11.97]
[1720903252501,11.97,140.37,140.32,11.97]
[1720903252887,11.97,140.36,140.28,11.97]
[1720903253098,11.97,140.36,140.31,11.97]
[1720903253307,11.97,140.35,140.3,11.97]
[1720903253687,11.97,140.35,140.26,22.3566]
[1720903253886,11.97,140.35,140.3,11.97]
[1720903258617,11.97,140.36,140.31,11.97]
[1720903261598,11.97,140.36,140.3,11.97]
[1720903265712,11.97,140.35,140.3,11.97]
[1720903270215,11.97,140.36,140.3,11.97]
[1720903270508,11.97,140.36,140.31,11.97]
[1720903270709,28.94283299,140.41,140.31,11.97]
[1720903270916,11.97,140.36,140.31,11.97]
[1720903272704,11.97,140.37,140.32,13.39510481]
[1720903272896,11.97,140.37,140.32,11.97]
[1720903276992,45.0,140.4,140.32,11.97]
[1720903277211,45.0,140.4,140.34,11.97]
[1720903277517,11.97,140.39,140.34,11.97]
[1720903278015,45.0,140.4,140.34,11.97]
[1720903278313,11.97,140.39,140.34,11.97]
[1720903278511,16.1084,140.41,140.34,11.97]
[1720903278694,11.97,140.39,140.34,11.97]
[1720903282532,11.97,140.4,140.35,11.97]
[1720903283100,16.1084,140.41,140.35,11.97]
[1720903283311,11.97,140.4,140.35,11.97]
[1720903284236,15.7873,140.44,140.34,16.0181]
[1720903284406,11.97,140.42,140.37,11.97]
[1720903284828,15.7873,140.44,140.37,11.97]
[1720903285032,11.97,140.42,140.37,11.97]
[1720903286307,11.97,140.41,140.37,11.97]
[1720903286507,11.97,140.41,140.36,11.97]
[1720903287826,11.97,140.41,140.37,1.42468258]
[1720903288312,11.97,140.42,140.37,13.39468258]
[1720903288514,15.7873,140.44,140.37,11.97]
[1720903288716,11.97,140.42,140.37,11.97]
[1720903289032,45.0,140.43,140.37,11.97]
[1720903289219,11.97,140.42,140.37,11.97]
[1720903289722,15.7873,140.44,140.38,13.39452733]
[1720903290028,11.97,140.43,140.38,11.97]
[1720903293030,2.82513614,140.46,140.35,13.3945275]
[1720903293206,11.97,140.44,140.39,11.97]
[1720903298649,45.0,140.46,140.39,11.97]
[1720903298818,11.97,140.44,140.39,11.97]
[1720903300528,11.97,140.45,140.4,11.97]
[1720903301440,11.97,140.44,140.38,16.3758]
[1720903301744,11.97,140.44,140.39,11.97]
[1720903301946,11.97,140.43,140.38,28.3458]
[1720903304031,11.97,140.43,140.38,16.3758]
[1720903304343,11.97,140.42,140.38,16.3758]
[1720903306056,15.7873,140.47,140.38,16.3758]
[1720903306345,11.97,140.45,140.4,11.97]
[1720903306533,11.97,140.44,140.39,11.97]
[1720903306842,11.97,140.44,140.38,22.7398]
[1720903307033,11.97,140.44,140.38,34.7098]
[1720903307237,11.97,140.43,140.38,34.7098]
[1720903309723,11.97,140.43,140.38,22.7398]
[1720903310553,11.97,140.42,140.38,22.7398]
[1720903310750,11.97,140.42,140.38,16.3758]
[1720903311727,11.97,140.43,140.38,16.3758]
[1720903311927,11.97,140.43,140.38,28.3458]
[1720903314342,11.97,140.44,140.38,28.3458]
[1720903314836,15.7873,140.47,140.38,28.3458]
[1720903315039,11.97,140.44,140.39,11.97]
[1720903316453,11.97,140.43,140.38,28.3458]
[1720903321257,45.0,140.46,140.38,28.3458]
[1720903321460,11.97,140.44,140.38,28.3458]
[1720903321770,11.97,140.43,140.38,28.3458]
[1720903322570,11.97,140.43,140.38,16.3758]
[1720903323770,45.0,140.46,140.34,6.364]
[1720903323946,11.97,140.39,140.35,20.0]
[1720903324144,11.97,140.39,140.34,34.0036]
[1720903329973,11.97,140.39,140.34,22.0336]
[1720903330277,11.97,140.39,140.34,34.0036]
[1720903332855,11.97,140.38,140.34,15.6696]
[1720903338590,11.97,140.39,140.34,27.6396]
[1720903339182,11.97,140.39,140.35,1.42482278]
[1720903339362,16.146,140.42,140.35,1.42482278]
[1720903339566,11.97,140.39,140.35,1.42482278]
[1720903340182,11.97,140.4,140.35,13.39482278]
[1720903341677,11.97,140.4,140.35,11.97]
[1720903342190,11.97,140.39,140.35,1.4247794]
[1720903346396,11.97,140.39,140.34,27.6396]
[1720903346779,28.116,140.42,140.34,15.6696]
[1720903346984,11.97,140.38,140.34,15.6696]
[1720903347499,11.97,140.38,140.35,1.42477586]
[1720903348077,11.97,140.38,140.34,15.6696]
[1720903348292,11.97,140.39,140.34,15.6696]
[1720903354625,11.97,140.38,140.34,15.6696]
[1720903354999,11.97,140.36,140.31,6.0257]
[1720903355322,11.97,140.35,140.31,6.0257]
[1720903356289,11.97,140.34,140.31,6.0257]
[1720903359596,11.97,140.34,140.3,15.6664]
[1720903359798,11.97,140.34,140.31,20.0]
[1720903362406,6.2993,140.4,140.28,18.2351]
[1720903362407,11.97,140.33,140.28,18.2351]
[1720903363522,15.2938,140.38,140.28,18.2351]
[1720903363523,15.2938,140.38,140.3,11.97]
[1720903363818,11.97,140.35,140.3,11.97]
[1720903365614,11.97,140.35,140.29,20.0]
[1720903365809,11.97,140.35,140.3,11.97]
[1720903366204,11.97,140.34,140.29,31.97]
[1720903367225,15.2938,140.38,140.29,31.97]
[1720903367524,22.73883806,140.42,140.33,11.97]
[1720903367823,11.97,140.37,140.32,11.97]
[1720903368002,11.97,140.37,140.31,11.97]
[1720903368202,11.97,140.37,140.32,20.0]
[1720903369011,11.97,140.37,140.32,31.97]
[1720903370731,15.2938,140.42,140.32,31.97]
[1720903371020,11.97,140.38,140.33,11.97]
[1720903371535,11.97,140.38,140.32,38.2351]
[1720903371700,11.97,140.37,140.32,38.2351]
[1720903372423,11.97,140.37,140.32,26.2651]
[1720903372744,11.97,140.37,140.32,38.2351]
[1720903376315,45.0,140.41,140.32,38.2351]
[1720903376626,11.97,140.38,140.33,11.97]
[1720903376830,11.97,140.38,140.32,38.2351]
[1720903380110,45.0,140.41,140.33,11.97]
[1720903380312,11.97,140.39,140.34,11.97]
[1720903380522,11.97,140.39,140.35,1.42476253]
[1720903380703,11.97,140.39,140.34,11.97]
[1720903381127,11.97,140.39,140.33,11.97]
[1720903382715,15.2938,140.42,140.33,11.97]
[1720903382916,11.97,140.39,140.33,11.97]
[1720903385539,15.2938,140.42,140.33,11.97]
[1720903385739,11.97,140.39,140.33,11.97]
[1720903386714,15.2938,140.42,140.33,11.97]
[1720903387032,11.97,140.39,140.32,26.2651]
[1720903387231,11.97,140.39,140.33,11.97]
[1720903389230,11.97,140.38,140.33,11.97]
[1720903395737,11.97,140.38,140.32,26.2651]
[1720903395932,27.2638,140.42,140.32,38.2351]
[1720903396241,45.0,140.41,140.32,38.2351]
[1720903396436,11.97,140.37,140.32,38.2351]
[1720903398330,11.97,140.38,140.32,38.2351]
[1720903398650,11.97,140.38,140.33,11.97]
[1720903400743,21.6732,140.4,140.27,21.8123]
[1720903400949,11.97,140.34,140.27,21.8123]
[1720903401161,11.97,140.34,140.29,11.97]
[1720903402346,11.97,140.34,140.3,20.0]
[1720903402553,11.97,140.34,140.3,31.97]
[1720903403446,11.97,140.34,140.3,20.0]
[1720903407060,11.97,140.34,140.3,31.97]
[1720903407437,11.97,140.35,140.3,31.97]
[1720903409556,11.97,140.34,140.3,20.0]
[1720903411443,11.97,140.35,140.3,31.97]
[1720903412642,11.97,140.34,140.3,20.0]
[1720903414946,21.6732,140.4,140.3,31.97]
[1720903415150,11.97,140.35,140.3,31.97]
[1720903415460,11.97,140.32,140.27,33.7823]
[1720903415651,11.97,140.32,140.27,27.3787]
[1720903419668,22.397,140.36,140.27,27.3787]
[1720903419964,11.97,140.33,140.28,11.97]
[1720903420469,11.97,140.34,140.29,13.39534979]
[1720903420671,22.397,140.36,140.3,11.97]
[1720903420850,11.97,140.34,140.29,11.97]
[1720903424163,6.335,140.39,140.3,11.97]
[1720903424464,11.97,140.36,140.3,11.97]
[1720903425573,6.335,140.39,140.31,11.97]
[1720903425774,11.97,140.36,140.31,11.97]
[1720903426373,6.335,140.39,140.31,11.97]
[1720903426576,11.97,140.36,140.31,11.97]
[1720903428565,16.062,140.4,140.33,11.97]
[1720903428875,11.97,140.38,140.33,11.97]
[1720903429568,11.97,140.37,140.32,11.97]
[1720903430472,11.97,140.38,140.28,18.3459]
[1720903430675,11.97,140.38,140.33,11.97]
[1720903431177,11.97,140.37,140.32,11.97]
[1720903438582,16.062,140.4,140.32,11.97]
[1720903438773,16.062,140.4,140.33,11.97]
[1720903438977,11.97,140.38,140.33,11.97]
[1720903439176,16.062,140.4,140.33,11.97]
[1720903439375,11.97,140.38,140.33,11.97]
[1720903440359,11.97,140.38,140.33,13.39485898]
[1720903441561,11.97,140.38,140.33,11.97]
[1720903442176,16.062,140.4,140.33,11.97]
[1720903442375,11.97,140.38,140.32,28.0525]
[1720903443473,11.97,140.38,140.33,11.97]
[1720903443959,11.97,140.37,140.32,28.0525]
[1720903444164,11.97,140.37,140.32,16.0825]
[1720903444363,11.97,140.35,140.3,11.97]
[1720903444667,11.97,140.35,140.31,20.0]
[1720903448595,11.97,140.34,140.29,16.0825]
[1720903450494,11.97,140.34,140.29,28.0525]
[1720903452073,11.97,140.34,140.28,11.97]
[1720903452287,11.97,140.33,140.29,20.0]
[1720903453383,11.97,140.34,140.29,20.0]
[1720903459483,11.97,140.34,140.29,31.97]
[1720903468497,11.97,140.34,140.29,20.0]
[1720903469198,11.97,140.33,140.29,20.0]
[1720903470700,11.97,140.33,140.28,11.97]
[1720903470901,11.97,140.33,140.29,20.0]
[1720903481420,11.97,140.34,140.29,20.0]
[1720903486516,11.97,140.34,140.29,31.97]
[1720903493622,11.97,140.34,140.29,20.0]
[1720903493818,11.97,140.34,140.28,11.97]
[1720903494135,11.97,140.34,140.29,20.0]
[1720903494328,11.97,140.33,140.29,20.0]
[1720903498538,15.2942,140.36,140.29,20.0]
[1720903498719,11.97,140.34,140.29,20.0]
[1720903498919,15.2942,140.36,140.29,20.0]
[1720903499140,11.97,140.34,140.29,20.0]
[1720903501546,11.97,140.34,140.28,11.97]